Cogmind - Beta 10.2 @@@ ROGUE MODE // 2021.08.27 @ 15:48:34 Player: Pitt Result: Destroyed by G-47 Trooper with Particle Gun Performance ------------- Evolutions (0) 0 Regions Visited (1) 200 Robots Destroyed (11) 55 Value Destroyed (291) 291 Prototype IDs (0) 0 Alien Tech Used (0) 0 Bonus (0) 0 TOTAL SCORE: 546 Bonus ------- None Cogmind --------- Core Integrity 0/250 Matter 66/500 Energy 112/125 System Corruption 5% Temperature Cool (9) Movement Hovering (66) Location -10/Materials Parts ------- > --- POWER (1) -------- Light Ion Engine > --- PROPULSION (2) --- Hover Unit Backup Propulsion I > --- UTILITY (2) ------ High-capacity Matter Pod Sensor Array > --- WEAPON (2) ------- Assault Rifle Assault Rifle > --- INVENTORY (4) ---- Aluminum Leg Small Storage Unit Datajack Mining Laser Peak State ------------ > --- POWER ------------ Light Ion Engine > --- PROPULSION ------- Wheel Compact Wheel > --- UTILITY ---------- Improved Terrain Scanner Hacking Suite > --- WEAPON ----------- EM Pulse Gun EM Pulse Gun > --- INVENTORY -------- Light Ion Engine Small Storage Unit Assault Rifle Mining Laser [Rating: 10] Favorites ----------- Power Light Ion Engine Engine Light Ion Engine Power Core Light Nuclear Core Propulsion Aluminum Leg Leg Aluminum Leg Wheel Wheel Hover Unit Hover Unit Utility Improved Terrain Scanner Device Improved Terrain Scanner Storage High-capacity Matter Pod Processor Seismic Analyzer Hackware Hacking Suite Weapon Assault Rifle Energy Gun EM Pulse Gun Ballistic Gun Assault Rifle Special Weapon Mining Laser Special Melee Weapon Datajack Build | -11 -10 ------- Run | Scr Mat Slots Evolved . | . . Power . | . . Propulsion . | . . Utility . | . . Weapon . | . . Parts Attached 30 | 8 22 Power 3 | 1 2 Engine 2 | 1 1 Core 1 | . 1 Reactor . | . . Propulsion 5 | 2 3 Treads . | . . Leg 2 | . 2 Wheel 2 | 2 . Hover 1 | . 1 Flight . | . . Utility 7 | 2 5 Device 3 | 1 2 Storage 2 | . 2 Processor 1 | 1 . Hackware 1 | . 1 Protection . | . . Artifact . | . . Weapon 15 | 3 12 Energy Gun 4 | 2 2 Energy Cannon . | . . Ballistic Gun 5 | 1 4 Ballistic Cannon . | . . Launcher . | . . Special Weapon 4 | . 4 Impact Weapon . | . . Slashing Weapon . | . . Piercing Weapon . | . . Special Melee Weapon 2 | . 2 Unidentified Prototypes . | . . Parts Lost 8 | . 8 Power . | . . Propulsion 2 | . 2 Utility 2 | . 2 Weapon 4 | . 4 Highest Loss Streak 6 | . 6 Average Slot Usage (%) 88 | . 88 Engine 12 | . 12 Core 1 | . 1 Leg 9 | . 9 Wheel 11 | . 11 Hover 6 | . 6 Device 11 | . 11 Storage 5 | . 5 Processor 1 | . 1 Hackware 3 | . 3 Energy Gun 8 | . 8 Ballistic Gun 11 | . 11 Special Melee Weapon 2 | . 2 Naked Turns . | . . Heaviest Build 12 | 8 12 Greatest Support 26 | 26 26 Greatest Overweight (x) 1 | . 1 Average Overweight (x) . | . . Largest Inventory Capacity 4 | 4 4 Average Capacity 4 | 4 4 Most Carried 4 | 4 4 Average Carried 3 | 1 3 Final Capacity 4 | 4 4 Final Carried 4 | 4 4 Class Distribution -------------------- 74% | Mutant 25% | Scavenger-Mutant Dominant Class ---------------- Mutant | -10/Materials Resources | -11 -10 ----------- Run | Scr Mat Matter Collected 241 | 130 111 Remotely . | . . Salvage Created 428 | 155 273 Parts 29 | 9 20 Haulers Intercepted . | . . Recyclers Shooed 2 | 1 1 Parts Field Recycled . | . . Retrieved Matter . | . . Parts Self-Destructed . | . . Prevented . | . . Kills | -11 -10 ------- Run | Scr Mat Combat Hostiles Destroyed 5 | . 5 Melee 2 | . 2 Guns 3 | . 3 Classes Destroyed 5 | 2 3 Tunneler 2 | 2 . Recycler 1 | 1 . Operator 1 | . 1 Watcher 2 | . 2 Grunt 5 | . 5 Best Kill Streak 3 | 2 3 Combat Bots Only 2 | . 2 Max Kills in Single Turn 1 | 1 1 Gunslinging . | . . Exploded . | . . Melee 1 | . 1 Uniques/NPCs Destroyed . | . . Combat | -11 -10 -------- Run | Scr Mat Damage Taken 551 | . 551 Core 253 | . 253 Absorbed by Shields . | . . Core Remaining (%) 100 | 100 . Volleys Fired 38 | 8 30 Largest 2 | 2 2 Hottest 120 | 80 120 Shots Fired 66 | 16 50 Gun 62 | 16 46 Cannon . | . . Launcher . | . . Special 4 | . 4 Kinetic 28 | . 28 Thermal 9 | . 9 Explosive . | . . Electromagnetic 29 | 16 13 Robot Hit Streak 4 | 3 4 Robot Miss Streak 3 | 2 3 Penetration Max . | . . Secondary Targets . | . . Shots Hit Robots 36 | 10 26 Core Hits 25 | 4 21 Critical Hits 1 | . 1 Critical Kills 1 | . 1 Critical Parts Destroyed . | . . Melee Attacks 3 | . 3 Impact . | . . Slashing . | . . Piercing . | . . Sneak Attacks 3 | . 3 Combat Hostiles . | . . Follow-up Attacks . | . . Damage Inflicted 558 | 129 429 Guns 490 | 129 361 Cannons . | . . Explosions . | . . Melee . | . . Ramming 44 | . 44 Kinetic 219 | . 219 Thermal 58 | . 58 Explosive . | . . Electromagnetic 237 | 129 108 Impact . | . . Slashing . | . . Piercing . | . . Highest Corruption 5 | . 5 Average Corruption 4 | . 4 Corruption Purged . | . . Effects 9 | . 9 Message Errors 1 | . 1 Matter Fused 1 | . 1 Heat Flow Errors 1 | . 1 Energy Discharges 2 | . 2 Targeting Errors 4 | . 4 Overload Shots . | . . Overflow Damage 32 | . 32 Projectiles . | . . Explosions 32 | . 32 Melee . | . . Knockbacks . | . . Impact . | . . Kinetic . | . . Secondary . | . . Self-Inflicted Damage 195 | . 195 Shots 2 | . 2 Rammed 24 | . 24 Targets Rammed 24 | . 24 Kicked . | . . Crushed . | . . Highest Temperature 252 | 56 252 Average Temperature 40 | 21 48 Received Heat Transfer 207 | . 207 Siege Activations . | . . Robots Corrupted . | . . Combat Hostiles . | . . Parts Fried 2 | 2 . Impact Corruptions . | . . Robots Melted . | . . Combat Hostiles . | . . Parts Melted . | . . Heat Transferred 125 | . 125 Parts Sabotaged . | . . Parts Stolen . | . . Parts Stripped . | . . Power Chain Reactions . | . . Missiles Intercepted . | . . Alert | -11 -10 ------- Run | Scr Mat Peak Influence 265 | 15 265 Initial 9 | . 9 Average 113 | 7 135 Maximum Alert Level 1 | . 1 Low Security (%) 67 | 100 60 Level 1 32 | . 39 Level 2 . | . . Level 3 . | . . Level 4 . | . . Level 5 . | . . High Security . | . . Max Security . | . . Squads Dispatched 2 | . 2 Investigation 1 | . 1 Extermination . | . . Reinforcement 1 | . 1 Assault . | . . Garrison . | . . Intercept . | . . Construction Impeded . | . . Haulers Reinforced . | . . Stealth | -11 -10 --------- Run | Scr Mat Distress Signals 2 | . 2 Communications Jammed . | . . Distress Signals . | . . Times Spotted 15 | . 15 Peak Tracking Total 3 | . 3 Tactical Retreats . | . . Traps | -11 -10 ------- Run | Scr Mat Traps Triggered . | . . Indirectly . | . . Trap Hack Attempts . | . . Triggered . | . . Disarmed . | . . Reprogrammed . | . . Reused . | . . Traps Extracted . | . . Installed . | . . Triggered 1 | . 1 Machines | -11 -10 ---------- Run | Scr Mat Machines Disabled 4 | . 4 Max in Single Turn 2 | . 2 Machines Sabotaged . | . . Garrisons Compromised . | . . Overloaded Fab Kills . | . . Fab Network Shutdowns . | . . Hacking | -11 -10 --------- Run | Scr Mat Machines Accessed 3 | . 3 Terminals 1 | . 1 Fabricators . | . . Repair Stations 1 | . 1 Recycling Units 1 | . 1 Scanalyzers . | . . Garrison Access . | . . Total Hacks 18 | . 18 Successful 12 | . 12 Failed 6 | . 6 Catastrophic . | . . Database Lockouts . | . . Manual 10 | . 10 Terminals 7 | . 7 Fabricators . | . . Repair Stations 6 | . 6 Recycling Units 5 | . 5 Scanalyzers . | . . Garrison Access . | . . Terminal Hacks 1 | . 1 Terminal Index 1 | . 1 Fabricator Hacks . | . . Repair Station Hacks 5 | . 5 Scan Component 2 | . 2 Repair 2 | . 2 Refit 1 | . 1 Recycling Unit Hacks 2 | . 2 Report Inventory 1 | . 1 Retrieve Components 1 | . 1 Scanalyzer . | . . Garrison Access Hacks . | . . Unauthorized Hacks 4 | . 4 Terminals 3 | . 3 Track 1 | . 1 Botnet 1 | . 1 Operators 1 | . 1 Fabricators . | . . Repair Stations . | . . Recycling Units 1 | . 1 Reject 1 | . 1 Scanalyzers . | . . Garrison Access . | . . Data Cores Recovered . | . . Used . | . . Hacking Detections 2 | . 2 Full Trace Events 1 | . 1 Feedback Events . | . . Feedback Blocked . | . . Robot Schematics Acquired . | . . Robots Built . | . . Matter . | . . Time . | . . Total Robot Build Rating . | . . Part Schematics Acquired . | . . Parts Built . | . . Matter . | . . Time . | . . Total Part Build Rating . | . . Parts Repaired 2 | . 2 Time 52 | . 52 Parts Recycled . | . . Recycled Matter . | . . Retrieved Matter . | . . Retrieved Components 9 | . 9 Parts Scanalyzed . | . . Part Schematics Acquired . | . . Parts Damaged . | . . Bothacking | -11 -10 ------------ Run | Scr Mat Used RIF Installer . | . . Robots Hacked 2 | . 2 Non-combat 2 | . 2 Combat . | . . Robot Hacks Applied 2 | . 2 parse_system 1 | . 1 find_recycling 1 | . 1 Relay Couplers Released . | . . Robots Rewired . | . . Allies Hacked . | . . Hacks Repelled . | . . Allies | -11 -10 -------- Run | Scr Mat Total Allies . | . . Largest Group . | . . Highest-Rated Group . | . . Highest-Rated Ally . | . . Total Orders . | . . Ally Attacks . | . . Total Damage . | . . Kills . | . . Allies Corrupted . | . . Allies Melted . | . . Intel | -11 -10 ------- Run | Scr Mat Robot Analysis Total . | . . Derelict Logs Recovered . | . . Drone Launches . | . . Drone Recoveries . | . . Exploration | -11 -10 ------------- Run | Scr Mat Turns Passed 703 | 118 585 Spaces Moved 332 | 65 267 Core 3 | 1 2 Treads . | . . Legs 74 | . 74 Wheels 150 | 64 86 Hover 105 | . 105 Flight . | . . Fastest Speed 50 | 50 50 Average Speed 89 | 89 89 Slowest Speed 120 | 90 120 Overloaded Moves . | . . Propulsion Burnouts . | . . Robots Hopped . | . . Cave-ins Triggered . | . . Exploration Rate (%) 22 | 4 41 Regions Visited 1 Branch Regions . Pre-discovered Areas . | . . Known Exits Taken . | . . Unknown Exits Taken 1 | 1 . Scrap Searched . | . . Spaces Dug 3 | . 3 Terrain Destroyed 54 | . 54 Melee . | . . Projectile 3 | . 3 AOE 51 | . 51 Terrain Rammed . | . . Walls Destroyed . | . . Machines Disabled . | . . Actions | -11 -10 --------- Run | Scr Mat Total 655 | 105 550 Wait 207 | 19 188 Move 331 | 64 267 Hop . | . . Pick Up 8 | 4 4 Fast Attach 21 | 8 13 Attach 3 | . 3 Detach 6 | 1 5 Swap 6 | . 6 Drop 8 | 1 7 Fire 38 | 8 30 Melee 3 | . 3 Ram 24 | . 24 Kick . | . . Crush . | . . Escape Stasis . | . . Rewire . | . . Trap . | . . Miscellaneous . | . . Route ------- -11/Scrapyard -10/Materials History --------- Turn | Location | Event 18 | -11/Scrapyard | Discovered new exit (range 15) 119 | -11/Scrapyard | Entered Materials 316 | -10/Materials | Build established: Mutant 350 | -10/Materials | Core integrity fell below 50% 374 | -10/Materials | Core integrity fell below 20% 403 | -10/Materials | Lost 6 parts (2n2u2w) 536 | -10/Materials | Repaired Sensor Array 563 | -10/Materials | Repaired Hcp. Matter Pod 704 | -10/Materials | Destroyed by G-47 Trooper with Particle Gun Last Messages --------------- 00593_ Jacked K-01 Serf... >>find_chute No applicable chute records found in memory. 00595_ Sneak attack on K-01 Serf. 00595_ Jacked K-01 Serf... >>parse_system Reading system data... 00598_ System corrupted: Energy discharge (-35). 00613_ Dropped Aluminum Leg. 00614_ Acquired Mining Laser. 00641_ V SK7GO>R=EP 00660_ Destroyed Lgt. Ion Engine. 00663_ System corrupted: Assault Rifle targeting data glitched. 00674_ W-16 Scout sends out distress signal. 00678_ Destroyed Hover Unit. 00678_ W-16 Scout destroyed. 00681_ Acquired 17 matter. 00689_ K-01 Serf collects debris. 00692_ System corrupted: Mining Laser targeting data glitched. 00694_ K-01 Serf collects debris. Map ----- +----------------------------------------------------+ | # "R ## # # #?###??? ?? ? | | # """ /## = # ###?#????????? | | # ## # ] # #########+#??? | | # """ ## # ? | | # """ ## """ "" # ? | | # """ # # """ """ + ""?? | | # ## # """ """ # ####### ""?? | | #+###+####### # #?????#?? "??? | | # ^ # ########## #????????????? | | # ^ #### ####+########## # ?? ?? ????? | | # ^ ###### #? ?????????? | | ######### # # #? ?????????? | | [ ## #""=!# a #???????????? | | ## #"Y=[# ## # ??????????? | | """ ## #""*[# ########? ???#?????? | | """ ## + ! # #?##???????????????? | | """ ## # # ########???????????? | | ## ###### r ? ????????? | | ###+#+## ##### r ??????????? | | ??# k """ ???????????? | | ??# ######/##### """ ??????????????? | | ??# % #?# # ^""" #?????o??????????? | | ??### ## #?# """ g #????????????????? | | ??#?# ### ##?# """ #g #????????????????? | | ????# #?# ##?# """ # u #????????????????? | | #####+### #?## k #@ #????????????????? | | # #??# """ # #????????????????? | | # #?## """ #u! +????????????????? | | % # #??# """ #!! #????????????????? | | / # #### # #????????????????? | | // + ##T#"######## #????????????????? | | // # #????????????????? | | # +????????????????? | | # #????????????????? | | # ##############+## #????????????????? | | ######### #???????????? ??? #????????????????? | | ????????# #???????????????? #????????????????? | | ????????# #?????????????? ?? #????????????????? | | ????????# #???????##???????? #????????????????? | | ????????# #????????????????????????????????????? | | ????????/ +????????????????????????????????????? | | ????????# ^#????????????????????????????????????? | | ????????# #????????????????????????????????????? | | ????????# #????????????????????????????????????? | | ????????# #????????????????????????????????????? | | ????????# #????????????????????????????????????? | | ????????# #????????????????????????????????????? | | ????????# #????????????????????????????????????? | | ???????? ????????????????????????????????????? | | ????????? ?????????????????????????????????????? | +----------------------------------------------------+ Best States ------------- Heat Dissipation 25 Energy Generation 14 Energy Capacity 160 Matter Stores 290 Matter Capacity 500 Sight Range 16 Robot Scan Range 10 Terrain Scan Range 16 Terrain Scan Density 60 Evasion (%) 51 Offensive Hacking 10 Item Schematics ----------------- None Robot Schematics ------------------ None Fabricated ------------ Nothing Alien Tech Used ----------------- None Achievements -------------- None Challenges ------------ None Game ------ Seed AdvancedChromaticFlail Manual? 0 Play Time 00:12:27 Cumulative 110.6 hours Start 2021.08.27 @ 15:36:57 End 2021.08.27 @ 15:48:34 Sessions 1 Manual Loads 0 Difficulty Rogue Special Mode None Game No. 176 Rogue 176 Adventurer 0 Explorer 0 Win Type - Total 0 Types 0/0/0/0/0/0/0/0/0 Lore% 49 Gallery% 54 Achievement% 35 Wizard Run 0 Options --------- ASCII 0 Keyboard 0 Movement Mouse Keybinds 0 Fullscreen 1 Font 12/Smallcaps Map View 83x54 Tactical HUD 1 Map Filters NONE Filters NONE Steam 1 RUN: f0fc7eab-a320-4e77-9b8c-2f6f095c1b4a